Workbook

Sheet Page 61
A1: NPV EXAMPLE
A2: Discount rate, r | B2: 0.06
A4: Year | B4: 0 | C4: 1 | D4: 2 | E4: 3 | F4: 4 | G4: 5
A5: Cash flow | B5: -1500 | C5: 100 | D5: 200 | E5: 300 | F5: 400 | G5: 500
A6: Present value | B6: =B5/(1+$B$2)^B4 -> -1500 | C6: =C5/(1+$B$2)^C4 -> 94.33962264 | D6: 177.999288 | E6: 251.8857849 | F6: 316.8374653 | G6: 373.6290864 | H6: =getformula(G6) -> <-- =G5/(1+$B$2)^G4
A8: Present value of future cash flows
B9: =SUM(C6:G6) -> 1214.691247 | C9: =getformula(B9) -> <-- =SUM(C6:G6)
B10: =NPV(B2,C5:G5) -> 1214.691247 | C10: =getformula(B10) -> <-- =NPV(B2,C5:G5)
A12: Net present value (NPV)
B13: =SUM(B6:G6) -> -285.3087527 | C13: =getformula(B13) -> <-- =SUM(B6:G6)
B14: =B5+NPV(B2,C5:G5) -> -285.3087527 | C14: =getformula(B14) -> <-- =B5+NPV(B2,C5:G5)

Sheet Page 62
A1: NPV EXAMPLE
A2: Discount rate, r | B2: 0.06
A4: Year | B4: 0 | C4: 1 | D4: 2 | E4: 3 | F4: 4 | G4: 5
A5: Cash flow | B5: -1000 | C5: 100 | D5: 200 | E5: 300 | F5: 400 | G5: 500
A6: Present value | B6: =B5/(1+$B$2)^B4 -> -1000 | C6: =C5/(1+$B$2)^C4 -> 94.33962264 | D6: 177.999288 | E6: 251.8857849 | F6: 316.8374653 | G6: 373.6290864 | H6: =getformula(G6) -> <-- =G5/(1+$B$2)^G4
A8: Present value of future cash flows
B9: =SUM(C6:G6) -> 1214.691247 | C9: =getformula(B9) -> <-- =SUM(C6:G6)
B10: =NPV(B2,C5:G5) -> 1214.691247 | C10: =getformula(B10) -> <-- =NPV(B2,C5:G5)
A12: Net present value (NPV)
B13: =SUM(B6:G6) -> 214.6912473 | C13: =getformula(B13) -> <-- =SUM(B6:G6)
B14: =B5+NPV(B2,C5:G5) -> 214.6912473 | C14: =getformula(B14) -> <-- =B5+NPV(B2,C5:G5)

Sheet Page 63
A1: CALCULATING THE NET PRESENT VALUE (NPV) WITH EXCEL
A2: Interest rate, r | B2: 0.05
A4: Year | B4: Payment | C4: Present value
A5: 0 | B5: -800 | C5: =B5/(1+$B$2)^A5 -> -800 | D5: ="<-- "&_xlfn.FORMULATEXT(C5) -> 
A6: 1 | B6: 100 | C6: =B6/(1+$B$2)^A6 -> 95.23809524 | D6: ="<-- "&_xlfn.FORMULATEXT(C6) -> 
A7: 2 | B7: 150 | C7: 136.0544218
A8: 3 | B8: 200 | C8: 172.7675197
A9: 4 | B9: 250 | C9: 205.6756187
A10: 5 | B10: 300 | C10: 235.0578499
A12: NPV
A13: Summing the present values | C13: =SUM(C5:C10) -> 44.79350535 | D13: ="<-- "&_xlfn.FORMULATEXT(C13) -> 
A14: Using Excel's NPV function | C14: =B5+NPV(B2,B6:B10) -> 44.79350535 | D14: ="<-- "&_xlfn.FORMULATEXT(C14) -> 

Sheet Page 64
A1: CALCULATING THE NET PRESENT VALUE (NPV) WITH EXCEL
A2: Interest rate, r | B2: 0.05
A4: Year | B4: Payment | C4: Present value
A5: 0 | B5: -800 | C5: =B5/(1+$B$2)^A5 -> -800 | D5: ="<-- "&_xlfn.FORMULATEXT(C5) -> 
A6: 1 | B6: 100 | C6: =B6/(1+$B$2)^A6 -> 95.23809524 | D6: ="<-- "&_xlfn.FORMULATEXT(C6) -> 
A7: 2 | B7: 150 | C7: 136.0544218
A8: 3 | B8: 200 | C8: 172.7675197
A9: 4 | B9: 250 | C9: 205.6756187
A10: 5 | B10: 300 | C10: 235.0578499
A12: NPV
A13: Summing the present values | C13: =SUM(C5:C10) -> 44.79350535 | D13: ="<-- "&_xlfn.FORMULATEXT(C13) -> 
A14: Using Excel's NPV function | C14: =B5+NPV(B2,B6:B10) -> 44.79350535 | D14: ="<-- "&_xlfn.FORMULATEXT(C14) -> 
A16: Discount rate | B16: NPV
A17: 0 | B17: =NPV(A17,$B$6:$B$10)+$B$5 -> 200 | C17: =getformula(B17) -> <-- =NPV(A17,$B$6:$B$10)+$B$5
A18: 0.01 | B18: =NPV(A18,$B$6:$B$10)+$B$5 -> 165.8571304 | C18: =getformula(B18) -> <-- =NPV(A18,$B$6:$B$10)+$B$5
A19: 0.02 | B19: =NPV(A19,$B$6:$B$10)+$B$5 -> 133.3595992 | C19: <-- =NPV(A19,$B$6:$B$10)+$B$5
A20: 0.03 | B20: 102.4094942
A21: 0.04 | B21: 72.91572963
A22: 0.05 | B22: 44.79350535
A23: 0.06 | B23: 17.96381292
A24: 0.07 | B24: -7.647014599
A25: 0.08 | B25: -32.10771385
A26: 0.09 | B26: -55.48246708
A27: 0.1 | B27: -77.831246
A28: 0.11 | B28: -99.21012671
A29: 0.12 | B29: -119.6715782
A30: 0.13 | B30: -139.2647271
A31: 0.14 | B31: -158.0356006
A32: 0.15 | B32: -176.0273497
A33: 0.16 | B33: -193.2804544

Sheet Page 67
A1: CALCULATING THE IRR WITH EXCEL
A2: Year | B2: Payment
A3: 0 | B3: -800
A4: 1 | B4: 100
A5: 2 | B5: 150
A6: 3 | B6: 200
A7: 4 | B7: 250
A8: 5 | B8: 300
A10: IRR | B10: =IRR(B3:B8) -> 0.06696549074 | C10: =getformula(B10) -> <-- =IRR(B3:B8)
A11: Check: The NPV using IRR as discount rate
B12: =B3+NPV(B10,B4:B8) -> 0 | C12: ="<-- "&_xlfn.FORMULATEXT(B12) -> 
A14: Discount rate | B14: NPV
A15: 0 | B15: =$B$3+NPV(A15,$B$4:$B$8) -> 200 | C15: =getformula(B15) -> <-- =$B$3+NPV(A15,$B$4:$B$8)
A16: 0.01 | B16: =$B$3+NPV(A16,$B$4:$B$8) -> 165.8571304 | C16: ="<-- "&_xlfn.FORMULATEXT(B16) -> 
A17: 0.02 | B17: 133.3595992
A18: 0.03 | B18: 102.4094942
A19: 0.04 | B19: 72.91572963
A20: 0.05 | B20: 44.79350535
A21: 0.06 | B21: 17.96381292
A22: 0.07 | B22: -7.647014599
A23: 0.08 | B23: -32.10771385
A24: 0.09 | B24: -55.48246708
A25: 0.1 | B25: -77.831246
A26: 0.11 | B26: -99.21012671
A27: 0.12 | B27: -119.6715782
A28: 0.13 | B28: -139.2647271
A29: 0.14 | B29: -158.0356006
A30: 0.15 | B30: -176.0273497
A31: 0.16 | B31: -193.2804544

Sheet Page 70
A1: CALCULATING THE IRR WITH EXCEL
A2: Year | B2: Payment
A3: 0 | B3: -1000
A4: 1 | B4: 300
A5: 2 | B5: 300
A6: 3 | B6: 300
A7: 4 | B7: 300
A9: IRR | B9: =IRR(B3:B7) -> 0.07713847295 | C9: =getformula(B9) -> <-- =IRR(B3:B7)
A10: Check: The NPV using IRR as discount rate
B11: =B3+NPV(B9,B4:B7) -> 8.913048077e-11 | C11: ="<-- "&_xlfn.FORMULATEXT(B11) -> 

Sheet Page 70 bottom
A1: USING IRR TO CHOOSE BETWEEN INVESTMENTS
A2: Year | B2: Investment A cash flows | C2: Investment B cash flows
A3: 0 | B3: -1000 | C3: -1000
A4: 1 | B4: 450 | C4: 550
A5: 2 | B5: 425 | C5: 300
A6: 3 | B6: 350 | C6: 457
A7: 4 | B7: 450 | C7: 200
A9: IRR | B9: =IRR(B3:B7) -> 0.2474397604 | C9: =IRR(C3:C7) -> 0.2165072288 | D9: ="<-- "&_xlfn.FORMULATEXT(C9) -> 

Sheet Page 72
A1: THE IRR AS A RATE OF RETURN ON AN INVESTMENT
A2: IRR | B2: =IRR({-200,130.91,130.91}) -> 0.2000057292 | C2: =getformula(B2) -> <-- =IRR({-200,130.91,130.91})
A3: Year | B3: Investment at beginning of year | C3: Payment at end of year | D3: Part of payment which is interest | E3: Part of payment which is repayment of principal
A4: 1 | B4: 200 | C4: 130.909 | D4: =$B$2*B4 -> 40.00114583 | E4: =C4-D4 -> 90.90785417
A5: 2 | B5: =B4-E4 -> 109.0921458 | C5: =C4 -> 130.909 | D5: =$B$2*B5 -> 21.81905417 | E5: =C5-D5 -> 109.0899458
A6: 3 | B6: =B5-E5 -> 0.002200005244
A8: =ggetformula(B5) -> =B4-E4 | D8: =ggetformula(D4) -> =$B$2*B4 | E8: =ggetformula(E4) -> =C4-D4
C10: =ggetformula(B6) -> =B5-E5 | F10: =ggetformula(E5) -> =C5-D5
E11: =ggetformula(D5) -> =$B$2*B5

Sheet Page 75
A1: TWO PROJECTS
A2: Discount rate, r | B2: 0.12
A4: Year | B4: Project A | C4: Project B
A5: 0 | B5: -1000 | C5: -800
A6: 1 | B6: 500 | C6: 420
A7: 2 | B7: 500 | C7: 420
A8: 3 | B8: 500 | C8: 420
A9: 4 | B9: 500 | C9: 420
A10: 5 | B10: 500 | C10: 420
A12: NPV | B12: =B5+NPV($B$2,B6:B10) -> 802.3881012 | C12: =C5+NPV($B$2,C6:C10) -> 714.006005 | D12: =getformula(C12) -> <-- =C5+NPV($B$2,C6:C10)

Sheet Page 76
A1: TWO PROJECTS
A2: Discount rate, r | B2: 0.12
A4: Year | B4: Project A | C4: Project B
A5: 0 | B5: -1000 | C5: -800
A6: 1 | B6: 500 | C6: 420
A7: 2 | B7: 500 | C7: 420
A8: 3 | B8: 500 | C8: 420
A9: 4 | B9: 500 | C9: 420
A10: 5 | B10: 500 | C10: 420
A12: IRR | B12: =IRR(B5:B10) -> 0.410414965 | C12: =IRR(C5:C10) -> 0.4402969363 | D12: =getformula(C12) -> <-- =IRR(C5:C10)

Sheet Page 77
A1: SIMPLE CAPITAL BUDGETING EXAMPLE
A2: Discount rate | B2: 0.15
A4: Year | B4: Cash flow
A5: 0 | B5: -1000
A6: 1 | B6: 100
A7: 2 | B7: 200
A8: 3 | B8: 300
A9: 4 | B9: 400
A10: 5 | B10: 500
A11: 6 | B11: 600
A13: PV of future cash flows | B13: =NPV(B2,B6:B11) -> 1172.126348 | C13: =getformula(B13) -> <-- =NPV(B2,B6:B11)
A14: NPV | B14: =B5+NPV(B2,B6:B11) -> 172.1263484 | C14: =getformula(B14) -> <-- =B5+NPV(B2,B6:B11)
A15: IRR | B15: =IRR(B5:B11) -> 0.1971038933 | C15: =getformula(B15) -> <-- =IRR(B5:B11)
A18: Discount rate | B18: NPV
A19: 0 | B19: =$B$5+NPV(A19,$B$6:$B$11) -> 1100 | C19: =getformula(B19) -> <-- =$B$5+NPV(A19,$B$6:$B$11)
A20: 0.03 | B20: =$B$5+NPV(A20,$B$6:$B$11) -> 849.3388236 | C20: =getformula(B20) -> <-- =$B$5+NPV(A20,$B$6:$B$11)
A21: 0.06 | B21: 637.6675715
A22: 0.09 | B22: 457.8303356
A23: 0.12 | B23: 304.1578961
A24: 0.15 | B24: 172.1263484
A25: 0.18 | B25: 58.10099215
A26: 0.21 | B26: -40.85741439
A27: 0.24 | B27: -127.140378
A28: 0.27 | B28: -202.7051476
A29: 0.3 | B29: -269.1625047

Sheet Page 79
A1: RANKING PROJECTS WITH NPV AND IRR
A2: Discount rate, r | B2: 0.15
A4: Year | B4: Project A | C4: Project B
A5: 0 | B5: -500 | C5: -500
A6: 1 | B6: 100 | C6: 250
A7: 2 | B7: 100 | C7: 250
A8: 3 | B8: 150 | C8: 200
A9: 4 | B9: 200 | C9: 100
A10: 5 | B10: 400 | C10: 50
A12: NPV | B12: =B5+NPV($B$2,B6:B10) -> 74.41966657 | C12: =C5+NPV($B$2,C6:C10) -> 119.964629 | D12: =getformula(C12) -> <-- =C5+NPV($B$2,C6:C10)
A13: IRR | B13: =IRR(B5:B10) -> 0.1977038885 | C13: =IRR(C5:C10) -> 0.2737998089 | D13: =getformula(C13) -> <-- =IRR(C5:C10)

Sheet Page 79 bottom
A1: RANKING PROJECTS WITH NPV AND IRR
A2: Discount rate, r | B2: 0.08
A4: Year | B4: Project A | C4: Project B
A5: 0 | B5: -500 | C5: -500
A6: 1 | B6: 100 | C6: 250
A7: 2 | B7: 100 | C7: 250
A8: 3 | B8: 150 | C8: 200
A9: 4 | B9: 200 | C9: 100
A10: 5 | B10: 400 | C10: 50
A12: NPV | B12: =B5+NPV($B$2,B6:B10) -> 216.6405601 | C12: =C5+NPV($B$2,C6:C10) -> 212.1147799 | D12: =getformula(C12) -> <-- =C5+NPV($B$2,C6:C10)
A13: IRR | B13: =IRR(B5:B10) -> 0.1977038885 | C13: =IRR(C5:C10) -> 0.2737998089 | D13: =getformula(C13) -> <-- =IRR(C5:C10)

Sheet Page 80
A1: RANKING PROJECTS WITH NPV AND IRR
A2: Discount rate, r | B2: 0.15
A4: Year | B4: Project A | C4: Project B
A5: 0 | B5: -500 | C5: -500
A6: 1 | B6: 100 | C6: 250
A7: 2 | B7: 100 | C7: 250
A8: 3 | B8: 150 | C8: 200
A9: 4 | B9: 200 | C9: 100
A10: 5 | B10: 400 | C10: 50
A12: NPV | B12: =B5+NPV($B$2,B6:B10) -> 74.41966657 | C12: =C5+NPV($B$2,C6:C10) -> 119.964629 | D12: =getformula(C12) -> <-- =C5+NPV($B$2,C6:C10)
A13: IRR | B13: =IRR(B5:B10) -> 0.1977038885 | C13: =IRR(C5:C10) -> 0.2737998089 | D13: =getformula(C13) -> <-- =IRR(C5:C10)
A15: Data table: NPV and discount rates
B17: Project A NPV | C17: Project B NPV
B18: =B12 -> 74.41966657 | C18: =C12 -> 119.964629 | D18: =getformula(C18)&", data table header" -> <-- =C12, data table header
A19: 0 | B19: 450 | C19: 350
A20: 0.02 | B20: 382.5658531 | C20: 311.5257845
A21: 0.04 | B21: 321.6906022 | C21: 275.8997148
A22: 0.06 | B22: 266.6041609 | C22: 242.8442982
A23: 0.08 | B23: 216.6405601 | C23: 212.1147799
A24: 0.1 | B24: 171.2221594 | C24: 183.4946694
A25: 0.12 | B25: 129.8464972 | C25: 156.7919553
A26: 0.14 | B26: 92.07529974 | C26: 131.8358919
A27: 0.16 | B27: 57.52526346 | C27: 108.474262
A28: 0.18 | B28: 25.86029811 | C28: 86.57103708
A29: 0.2 | B29: -3.215020576 | C29: 66.00437243
A30: 0.22 | B30: -29.96099494 | C30: 46.66488233
A31: 0.24 | B31: -54.60751351 | C31: 28.45415325
A32: 0.26 | B32: -77.35806087 | C32: 11.28345795
A33: 0.28 | B33: -98.39314222 | C33: -4.927359521
A34: 0.3 | B34: -117.873216 | C34: -20.2508531

Sheet Page 81
A1: CALCULATING THE CROSSOVER POINT FOR A AND B
A2: Year | B2: Project A | C2: Project B | D2: Differential cash flows: cash flow(A) - cash flow (B)
A3: 0 | B3: -500 | C3: -500 | D3: =B3-C3 -> 0 | E3: =getformula(D3) -> <-- =B3-C3
A4: 1 | B4: 100 | C4: 250 | D4: =B4-C4 -> -150 | E4: =getformula(D4) -> <-- =B4-C4
A5: 2 | B5: 100 | C5: 250 | D5: -150
A6: 3 | B6: 150 | C6: 200 | D6: -50
A7: 4 | B7: 200 | C7: 100 | D7: 100
A8: 5 | B8: 400 | C8: 50 | D8: 350
C10: IRR | D10: =IRR(D3:D8) -> 0.08512766132 | E10: =getformula(D10) -> <-- =IRR(D3:D8)

Sheet Page 82
A1: RANKING PROJECTS WITH NPV AND IRR
A2: Discount rate | B2: 0.08
A4: Year | B4: Project A | C4: Project B
A5: 0 | B5: -500 | C5: -500
A6: 1 | B6: 100 | C6: 250
A7: 2 | B7: 100 | C7: 250
A8: 3 | B8: 150 | C8: 200
A9: 4 | B9: 200 | C9: 100
A10: 5 | B10: 400 | C10: 50
A12: NPV | B12: =B5+NPV(B2,B6:B10) -> 216.6405601 | C12: =C5+NPV(B2,C6:C10) -> 212.1147799 | D12: =getformula(C12) -> <-- =C5+NPV(B2,C6:C10)
A13: IRR | B13: =IRR(B5:B10) -> 0.1977038885 | C13: =IRR(C5:C10) -> 0.2737998089 | D13: =getformula(C13) -> <-- =IRR(C5:C10)

Sheet Page 83+84
A1: BUYING A CAR
A2: List price of car | B2: 11000
A3: Downpayment | B3: 5000
A4: Cash cost of car | B4: 10000
A5: Bank rate of interest | B5: 0.09
A7: Year | B7: Payment in cash | C7: Payment with credit | D7: Cash spent or saved with credit plan
A8: 0 | B8: =-B4 -> -10000 | C8: =-B3 -> -5000 | D8: =C8-B8 -> 5000 | E8: =getformula(D8) -> <-- =C8-B8
A9: 1 | C9: -2000 | D9: =C9-B9 -> -2000 | E9: =getformula(D9) -> <-- =C9-B9
A10: 2 | C10: -2000 | D10: -2000
A11: 3 | C11: -2000 | D11: -2000
A13: Internal rate of return | D13: =IRR(D8:D11) -> 0.0970102574 | E13: =getformula(D13) -> <-- =IRR(D8:D11)
A15: NPV of cash saved | D15: =D8+NPV(B5,D9:D11) -> -62.58933198 | E15: =getformula(D15) -> <-- =D8+NPV(B5,D9:D11)
A18: Borrowing the money from the bank
A19: Year | B19: Payment in cash | C19: Bank loan cash flows | D19: Total cash flows to car owner
A20: 0 | B20: -10000 | C20: 5000 | D20: =B20+C20 -> -5000 | E20: =getformula(D20) -> <-- =B20+C20
A21: 1 | C21: =PMT($B$5,3,C20) -> -1975.273787 | D21: =B21+C21 -> -1975.273787 | E21: =getformula(D21) -> <-- =B21+C21
A22: 2 | C22: =C21 -> -1975.273787 | D22: -1975.273787
A23: 3 | C23: =C22 -> -1975.273787 | D23: -1975.273787

Sheet Page 84 bottom
A1: IRR VERSUS NPV--THE DEALER'S PROBLEM
A2: List price of car | B2: 11000
A3: Downpayment | B3: 5000
A4: Cash cost of car | B4: 10000
A5: Bank rate of interest | B5: 0.09
A7: Year | B7: Payment in cash | C7: Payment with credit | D7: Differential dealer cash flow
A8: 0 | B8: 10000 | C8: 5000 | D8: =C8-B8 -> -5000 | E8: =getformula(D8) -> <-- =C8-B8
A9: 1 | C9: 2000 | D9: =C9-B9 -> 2000 | E9: =getformula(D9) -> <-- =C9-B9
A10: 2 | C10: 2000 | D10: 2000
A11: 3 | C11: 2000 | D11: 2000
A13: Internal rate of return | D13: =IRR(D8:D11) -> 0.0970102574 | E13: =getformula(D13) -> <-- =IRR(D8:D11)
A15: NPV of cash saved | D15: =D8+NPV(B5,D9:D11) -> 62.58933198 | E15: =getformula(D15) -> <-- =D8+NPV(B5,D9:D11)

Sheet Page 85
A1: CONVENTIONAL AND NON-CONVENTIONAL CASH FLOW PATTERNS
A2: Year | B2: Cash flow project A | C2: Cash flow project B | D2: Cash flow project C | E2: Cash flow project D | F2: Cash flow project E | G2: Cash flow project F
A3: 0 | B3: -100 | C3: -100 | D3: 100 | E3: 25 | F3: -25 | G3: -250
A4: 1 | B4: 200 | C4: -50 | D4: 55 | E4: 35 | F4: 80 | G4: 35
A5: 2 | B5: 500 | C5: 60 | D5: 35 | E5: =-200 -> -200 | F5: -100 | G5: 145
A6: 3 | B6: 50 | C6: 80 | D6: 50 | E6: 33 | F6: 200 | G6: 330
A7: 4 | B7: 60 | C7: 99 | D7: -100 | E7: 55 | F7: 55 | G7: 55
A8: 5 | B8: 35 | C8: 100 | D8: -35 | E8: 155 | F8: -250 | G8: -250
B9: ­ Conventional cash flow pattern | C9: ­ Conventional cash flow pattern | D9: ­ Conventional cash flow pattern | E9: ­ Non-conventional cash flow pattern | F9: ­ Non-conventional cash flow pattern | G9: ­ Non-conventional cash flow pattern
B10: Initial negative cash flow followed by positive cash flows | C10: Two initial negative cash flows followed by positive cash flows | D10: Initial positive cash flows followed by negative cash flows | E10: Two positive cash flows, then negative, then three positive cash flows | F10: Initial negative cash flow, then positive, then negative, positive, negative cash flows | G10: Negative cash flows at beginning and end, other cash flows positive
A12: IRR | B12: =IRR(B3:B8) -> 2.490130682 | C12: =IRR(C3:C8) -> 0.2849446258 | D12: -0.1747098761 | E12: 0.5629148169 | F12: 0.1099308701 | G12: 0.1908684204
E13: =IRR(E3:E8,60%) -> 0.6087541132 | F13: =IRR(F3:F8,160%) -> 1.735706551 | G13: =IRR(G3:G8,-20%) -> -0.2273874687
A17: Datat table, project D
B18: =NPV(A18,E4:E8)+E3 -> 103 | C18: =getformula(B18) -> <-- =NPV(A18,E4:E8)+E3
A19: 0 | B19: 103
A20: 0.1 | B20: 50.13085917
A21: 0.25 | B21: 15.2144
A22: 0.4 | B22: 3.122210984
A23: 0.5 | B23: 0.4979423868
A24: 0.52 | B24: 0.26520831
A25: 0.54 | B25: 0.105032636
A26: 0.56 | B26: 0.009077110233
A27: 0.58 | B27: -0.0300850108
A28: 0.6 | B28: -0.01907348633
A29: 0.62 | B29: 0.03620722146
A30: 0.64 | B30: 0.1304874048
A31: 0.66 | B31: 0.2590612582
A32: 0.68 | B32: 0.4177244652
A33: 0.7 | B33: 0.6027191471
A34: 0.72 | B34: 0.8106852407
A35: 0.74 | B35: 1.038617504
A36: 0.76 | B36: 1.283827448
A37: 0.78 | B37: 1.543909597
A39: Data table, project E | E39: Data table, project F
A40: 0 | B40: =F3+NPV(A40,F4:F8) -> -40 | E40: 0 | F40: =G3+NPV(E40,G4:G8) -> 65
A41: 0 | B41: -40 | E41: -0.3 | F41: -200.3867436
A42: 0.01 | B42: -34.71615752 | E42: -0.2 | F42: 36.18164063
A43: 0.02 | B43: -29.84224269 | E43: 0.02 | F43: 59.02836514
A44: 0.03 | B44: -25.34676459 | E44: 0.03 | F44: 55.86832847
A45: 0.04 | B45: -21.20081883 | E45: 0.04 | F45: 52.61574922
A46: 0.05 | B46: -17.37785745 | E46: 0.05 | F46: 49.28610972
A47: 0.06 | B47: -13.85348102 | E47: 0.06 | F47: 45.89332339
A48: 0.07 | B48: -10.60525052 | E48: 0.07 | F48: 42.44988714
A49: 0.08 | B49: -7.612517107 | E49: 0.08 | F49: 38.96701853
A50: 0.09 | B50: -4.856267868 | E50: 0.09 | F50: 35.45477922
A51: 0.1 | B51: -2.318985911 | E51: 0.1 | F51: 31.92218614
A52: 0.11 | B52: 0.01547657119 | E52: 0.11 | F52: 28.37731174
A53: 0.3 | B53: 20.32485126 | E53: 0.3 | F53: -35.14852152
A54: 0.6 | B54: 19.31610107 | E54: 0.6 | F54: -106.3674927
A55: 0.9 | B55: 12.68702301 | E55: 0.9 | F55: -149.1769513
A56: 1.2 | B56: 6.982260278 | E56: 1.2 | F56: -175.643585
A57: 1.5 | B57: 2.648 | E57: 1.5 | F57: -192.832
A58: 1.8 | B58: -0.6306895936 | E58: 1.8 | F58: -204.5301065
A59: 2.1 | B59: -3.163627695 | E59: 2.1 | F59: -212.8217459
A60: 2.4 | B60: -5.17122499 | E60: 2.4 | F60: -218.9051961
A61: 2.7 | B61: -6.801603851 | E61: 2.7 | F61: -223.5010096
A62: 3 | B62: -8.154296875 | E62: 3 | F62: -227.0605469
A63: 3.3 | B63: -9.29735903 | E63: 3.3 | F63: -229.8769935

Sheet Page 87
A1: SANITARY LANDFILL, INC.
A2: Year | B2: Cash flow
A3: 0 | B3: -800
A4: 1 | B4: 450
A5: 2 | B5: 450
A6: 3 | B6: 450
A7: 4 | B7: 450
A8: 5 | B8: 450
A9: 6 | B9: -1500
A11: First IRR | B11: =IRR(B3:B9,0) -> 0.02684389888 | C11: =getformula(B11) -> <-- =IRR(B3:B9,0)
A12: Second IRR | B12: =IRR(B3:B9,25%) -> 0.2774168557 | C12: =getformula(B12) -> <-- =IRR(B3:B9,25%)
A14: Data Table: NPV of cash flows
A15: Discount rate | B15: NPV
A16: 0 | B16: =$B$3+NPV(A16,$B$4:$B$9) -> -50 | C16: =getformula(B16) -> <-- =$B$3+NPV(A16,$B$4:$B$9)
A17: 0.02 | B17: =$B$3+NPV(A17,$B$4:$B$9) -> -10.90029445 | C17: =getformula(B17) -> <-- =$B$3+NPV(A17,$B$4:$B$9)
A18: 0.04 | B18: 17.84826036 | C18: <-- =$B$3+NPV(A18,$B$4:$B$9)
A19: 0.06 | B19: 38.12289285 | C19: <-- =$B$3+NPV(A19,$B$4:$B$9)
A20: 0.08 | B20: 51.46507636
A21: 0.1 | B21: 59.14315115
A22: 0.12 | B22: 62.20260929
A23: 0.14 | B23: 61.50661446
A24: 0.16 | B24: 57.76876215
A25: 0.18 | B25: 51.57965066
A26: 0.2 | B26: 43.42849794
A27: 0.22 | B27: 33.72077902
A28: 0.24 | B28: 22.79265639
A29: 0.26 | B29: 10.92281784
A30: 0.28 | B30: -1.657788362
A31: 0.3 | B31: -14.75792806
A32: 0.32 | B32: -28.21945052
A33: 0.34 | B33: -41.91179813
A34: 0.36 | B34: -55.72745126

Sheet Page 89
A1: IRR ASSUMES REINVESTMENT OF INTERMEDIATE CASH FLOW AT IRR
A2: Year | B2: Cash flow | D2: Cash flow reinvested at IRR
A3: 0 | B3: -1000 | D3: =B3 -> -1000 | E3: =getformula(D3) -> <-- =B3
A4: 1 | B4: 200 | D4: =B4*(1+$B$11)^(5-A4) -> 275.7070984 | E4: =getformula(D4) -> <-- =B4*(1+$B$11)^(5-A4)
A5: 2 | B5: 300 | D5: =B5*(1+$B$11)^(5-A5) -> 381.6670944 | E5: =getformula(D5) -> <-- =B5*(1+$B$11)^(5-A5)
A6: 3 | B6: 400 | D6: =B6*(1+$B$11)^(5-A6) -> 469.6442044
A7: 4 | B7: 200 | D7: =B7*(1+$B$11)^(5-A7) -> 216.7127602
A8: 5 | B8: 150 | D8: =B8*(1+$B$11)^(5-A8) -> 150 | E8: =getformula(D8) -> <-- =B8*(1+$B$11)^(5-A8)
D10: =SUM(D4:D8) -> 1493.731157 | E10: ="<-- "&_xlfn.FORMULATEXT(D10) -> 
A11: IRR | B11: =IRR(B3:B8) -> 0.08356380102 | C11: =getformula(B11) -> <-- =IRR(B3:B8) | D11: =(D10/-D3)^(1/5)-1 -> 0.08356380102 | E11: =getformula(D11) -> <-- =(D10/-D3)^(1/5)-1

Sheet Page 90
A1: REINVESTING INTERMEDIATE CASH FLOWS AT A RATE DIFFERENT FROM THE IRR
A2: Reinvestment rate | B2: 0.05
A3: Year | B3: Cash flow | D3: Cash flow reinvested at IRR
A4: 0 | B4: -1000 | D4: =B4 -> -1000 | E4: =getformula(D4) -> <-- =B4
A5: 1 | B5: 200 | D5: =B5*(1+$B$2)^(5-A5) -> 243.10125 | E5: =getformula(D5) -> <-- =B5*(1+$B$2)^(5-A5)
A6: 2 | B6: 300 | D6: =B6*(1+$B$2)^(5-A6) -> 347.2875 | E6: =getformula(D6) -> <-- =B6*(1+$B$2)^(5-A6)
A7: 3 | B7: 400 | D7: =B7*(1+$B$2)^(5-A7) -> 441
A8: 4 | B8: 200 | D8: =B8*(1+$B$2)^(5-A8) -> 210
A9: 5 | B9: 150 | D9: =B9*(1+$B$2)^(5-A9) -> 150 | E9: =getformula(D9) -> <-- =B9*(1+$B$2)^(5-A9)
D11: =SUM(D5:D9) -> 1391.38875 | E11: ="<-- "&_xlfn.FORMULATEXT(D11) -> 
A12: IRR | B12: =IRR(B4:B9) -> 0.08356380102 | C12: =getformula(B12) -> <-- =IRR(B4:B9) | D12: =(D11/-D4)^(1/5)-1 -> 0.06829131459 | E12: =getformula(D12) -> <-- =(D11/-D4)^(1/5)-1
D13: =MIRR(B4:B9,0,B2) -> 0.06829131459 | E13: =getformula(D13) -> <-- =MIRR(B4:B9,0,B2)

Sheet Page 91
A1: MIRR WITH DIFFERENT FINANCING AND REINVESTMENT RATES
A2: Financing rate | B2: 0.08
A3: Reinvestment rate | B3: 0.05
A4: Year | B4: Cash flow | D4: FV of cash flow reinvested | E4: PV of cash flow borrowed
A5: 0 | B5: -1000 | D5: =B5 -> -1000 | E5: =IF(B5<=0,B5/(1+$B$2)^A5,0) -> -1000 | F5: =getformula(E5) -> <-- =IF(B5<=0,B5/(1+$B$2)^A5,0)
A6: 1 | B6: 800 | D6: =IF(B6>0,B6*(1+$B$3)^(5-A6),0) -> 972.405 | E6: =IF(B6<=0,B6/(1+$B$2)^A6,0) -> 0 | F6: =getformula(E6) -> <-- =IF(B6<=0,B6/(1+$B$2)^A6,0)
A7: 2 | B7: -300 | D7: =IF(B7>0,B7*(1+$B$3)^(5-A7),0) -> 0 | E7: =IF(B7<=0,B7/(1+$B$2)^A7,0) -> -257.2016461 | F7: =getformula(E7) -> <-- =IF(B7<=0,B7/(1+$B$2)^A7,0)
A8: 3 | B8: -200 | D8: 0 | E8: -158.7664482 | F8: =getformula(E8) -> <-- =IF(B8<=0,B8/(1+$B$2)^A8,0)
A9: 4 | B9: 900 | D9: 945 | E9: 0
A10: 5 | B10: 150 | D10: 150 | E10: 0
A12: Modified investment | D12: =SUM(E5:E10) -> -1415.968094 | E12: =getformula(D12) -> <-- =SUM(E5:E10)
A13: Modified future value | D13: =SUM(D6:D10) -> 2067.405 | E13: =getformula(D13) -> <-- =SUM(D6:D10)
A14: IRR | B14: =IRR(B5:B10) -> 0.1155375027 | C14: =getformula(B14) -> <-- =IRR(B5:B10) | D14: =(D13/-D12)^(1/5)-1 -> 0.07863477793 | E14: =getformula(D14) -> <-- =(D13/-D12)^(1/5)-1
D15: =MIRR(B5:B10,B2,B3) -> 0.07863477793 | E15: =getformula(D15) -> <-- =MIRR(B5:B10,B2,B3)

Sheet Page 92
A1: DIFFERENT LIFE SPANS
A2: Discount rate, r | B2: 0.12
A4: Year | B4: Truck A | C4: Truck B
A5: 0 | B5: -100 | C5: -250
A6: 1 | B6: 150 | C6: 300
A7: 2 | B7: =B6 -> 150 | C7: =C6 -> 300
A8: 3 | B8: =B7 -> 150 | C8: =C7 -> 300
A9: 4 | B9: =B8 -> 150
A10: 5 | B10: =B9 -> 150
A11: 6 | B11: =B10 -> 150
A13: NPV | B13: =B5+NPV($B$2,B6:B11) -> 516.7110985 | C13: =C5+NPV($B$2,C6:C11) -> 470.5493805 | D13: =getformula(C13) -> <-- =C5+NPV($B$2,C6:C11)

Sheet Page 92 bottom
A1: DIFFERENT LIFE SPANS at end of year 3, truck B is replaced
A2: Discount rate, r | B2: 0.12
A4: Year | B4: Cash flow (A) | C4: Cash flow (B)
A5: 0 | B5: -100 | C5: -250
A6: 1 | B6: 150 | C6: 300
A7: 2 | B7: =B6 -> 150 | C7: =C6 -> 300
A8: 3 | B8: =B7 -> 150 | C8: =300-250 -> 50 | D8: =getformula(C8) -> <-- =300-250
A9: 4 | B9: =B8 -> 150 | C9: 300
A10: 5 | B10: =B9 -> 150 | C10: 300
A11: 6 | B11: =B10 -> 150 | C11: 300
A13: NPV | B13: =B5+NPV($B$2,B6:B11) -> 516.7110985 | C13: =C5+NPV($B$2,C6:C11) -> 805.4771351 | D13: =getformula(C13) -> <-- =C5+NPV($B$2,C6:C11)

Sheet Page 94
A1: DIFFERENT LIFE SPANS Computing the equivalent annuity cash flow (EAC)
A2: Discount rate, r | B2: 0.12
A4: Year | B4: Cash flow (A) | C4: Cash flow (B)
A5: 0 | B5: -100 | C5: -250
A6: 1 | B6: 150 | C6: =300 -> 300
A7: 2 | B7: =B6 -> 150 | C7: =C6 -> 300
A8: 3 | B8: =B7 -> 150 | C8: =C7 -> 300
A9: 4 | B9: =B8 -> 150
A10: 5 | B10: =B9 -> 150
A11: 6 | B11: =B10 -> 150
A13: NPV | B13: =B5+NPV($B$2,B6:B11) -> 516.7110985 | C13: =C5+NPV($B$2,C6:C11) -> 470.5493805 | D13: =getformula(C13) -> <-- =C5+NPV($B$2,C6:C11)
A14: EAC--Equivalent annuity cash flow | B14: =-PMT(B2,6,B13) -> 125.6774282 | C14: =-PMT(B2,3,C13) -> 195.9127549 | D14: =getformula(C14) -> <-- =-PMT(B2,3,C13)
A16: =ggetformula(B14) -> =-PMT(B2,6,B13)

Sheet Page 95
A1: LIGHT BULBS Choosing between cheap incandescents and expensive fluorescents
A2: Annual discount rate | B2: 0.08
A3: Monthly discount rate | B3: =(1+B2)^(1/12)-1 -> 0.00643403011 | C3: =getformula(B3) -> <-- =(1+B2)^(1/12)-1
A4: Electric cost per kilowatt (a kilowatt = 1000 watts) | B4: 0.1
A6: Incandescent bulb
A7: Watts | B7: 100
A8: Cost | B8: 1
A9: Hours per month used | B9: 250
A10: Lifetime of bulb (hours) | B10: 1000
A11: Lifetime in months | B11: =B10/B9 -> 4
A12: Monthly cost | B12: =B9*$B$4*B7/1000 -> 2.5 | C12: =getformula(B12) -> <-- =B9*$B$4*B7/1000
A13: NPV of lifetime use | B13: =B8+PV(B3,B11,-B12) -> 10.84119602 | C13: =getformula(B13) -> <-- =B8+PV(B3,B11,-B12)
A14: Monthly equivalent annuity cash flow (EAC) for cheap incandescent | B14: =-PMT(B3,B11,B13) -> 2.754034164 | C14: =getformula(B14) -> <-- =-PMT(B3,B11,B13)
A16: Equivalent fluorescent bulb
A17: Watts | B17: 15
A18: Cost | B18: 5
A19: Hours per month used | B19: =B9 -> 250
A20: Lifetime of bulb (hours) | B20: 10000
A21: Lifetime in months | B21: =B20/B19 -> 40
A22: Monthly cost | B22: =B19*$B$4*B17/1000 -> 0.375 | C22: =getformula(B22) -> <-- =B19*$B$4*B17/1000
A23: NPV of lifetime use | B23: =B18+PV(B3,B21,-B22) -> 18.18808807 | C23: =getformula(B23) -> <-- =B18+PV(B3,B21,-B22)
A24: Monthly equivalent annuity cash flow (EAC) for expensive fluorescent | B24: =-PMT(B3,B21,B23) -> 0.5171737548 | C24: =getformula(B24) -> <-- =-PMT(B3,B21,B23)

Sheet Page 97+98
A1: PROFITABILITY INDEX EXAMPLE
A2: Discount rate, r | B2: 0.1
A4: Project | B4: Investment (t=0) | C4: t=1 | D4: t=2 | E4: NPV
A5: A | B5: -100 | C5: 150 | D5: 170 | E5: =B5+NPV($B$2,C5:D5) -> 176.8595041 | F5: =getformula(E5) -> <-- =B5+NPV($B$2,C5:D5)
A6: B | B6: -120 | C6: 200 | D6: 140 | E6: =B6+NPV($B$2,C6:D6) -> 177.5206612
A7: C | B7: -150 | C7: 300 | D7: 300 | E7: 370.661157
A10: =A4 -> Project | B10: NPV | C10: Resource requirement (hours/week) | D10: PI | E10: Rank
A11: =A5 -> A | B11: =E5 -> 176.8595041 | C11: 30 | D11: =B11/C11 -> 5.895316804 | E11: =RANK(D11,$D$11:$D$13) -> 3 | F11: =getformula(E11) -> <-- =RANK(D11,$D$11:$D$13)
A12: =A6 -> B | B12: =E6 -> 177.5206612 | C12: 20 | D12: =B12/C12 -> 8.876033058 | E12: =RANK(D12,$D$11:$D$13) -> 1 | F12: <-- =RANK(D12,$D$11:$D$13)
A13: =A7 -> C | B13: 370.661157 | C13: 50 | D13: =B13/C13 -> 7.41322314 | E13: 2 | F13: =getformula(E13) -> <-- =RANK(D13,$D$11:$D$13)
